bitfinex-derivatives/quotes_BTCF0:USTF0_20241029
["timestamp","ask_amount","ask_price","bid_price","bid_amount"]
[1730221889583,0.068766,72721.0,72720.0,0.09888003]
[1730221889771,0.00076,72725.0,72724.0,0.068763]
[1730221889976,0.00076,72725.0,72724.0,0.27307014]
[1730221890177,0.3608,72733.0,72731.0,0.068756]
[1730221890378,0.3608,72733.0,72732.0,0.068755]
[1730221890579,0.429554,72733.0,72732.0,0.17418211]
[1730221890778,0.46622711,72733.0,72726.0,0.06848415]
[1730221890980,0.068763,72724.0,72722.0,0.06848415]
[1730221891179,0.3608,72727.0,72722.0,0.06850967]
[1730221891380,0.1479,72726.0,72723.0,0.06850967]
[1730221891686,0.3608,72724.0,72720.0,0.06851401]
[1730221891885,0.068765,72722.0,72721.0,0.06851401]
[1730221892079,0.068765,72722.0,72721.0,0.17394112]
[1730221892279,0.068767,72720.0,72719.0,0.01758511]
[1730221892485,0.068767,72720.0,72715.0,0.11728]
[1730221892486,0.06877,72716.0,72715.0,0.11728]
[1730221892684,0.03367653,72716.0,72715.0,0.068771]
[1730221893889,0.03367653,72716.0,72714.0,0.10542711]
[1730221894086,0.14466132,72715.0,72714.0,0.10542711]
[1730221894285,0.14466132,72715.0,72714.0,0.12250669]
[1730221894489,0.14466132,72715.0,72712.0,0.068774]
[1730221894687,0.068771,72715.0,72714.0,0.10542711]
[1730221894983,0.3608,72718.0,72714.0,0.10542711]
[1730221894984,0.07589003,72717.0,72714.0,0.10542711]
[1730221895287,0.07589003,72716.0,72715.0,0.068771]
[1730221895586,0.07589003,72716.0,72715.0,0.429571]
[1730221895587,0.07689003,72716.0,72715.0,0.429571]
[1730221895783,0.03467753,72716.0,72715.0,0.53499811]
[1730221895984,0.03467753,72716.0,72715.0,0.68749811]
[1730221896373,0.03467437,72716.0,72715.0,0.68749811]
[1730221896579,0.07688289,72716.0,72715.0,0.582071]
[1730221896775,0.03467437,72716.0,72715.0,0.582071]
[1730221897379,0.03467437,72716.0,72715.0,0.68749811]
[1730221897580,0.03467437,72716.0,72715.0,0.582071]
[1730221897987,0.03467437,72716.0,72715.0,0.429571]
[1730221899400,0.02060036,72726.0,72715.0,0.89095544]
[1730221899690,0.3608,72729.0,72726.0,0.10542711]
[1730221899882,0.06876,72727.0,72726.0,0.10542711]
[1730221900082,0.06876,72727.0,72726.0,0.32396282]
[1730221900281,0.06876,72727.0,72726.0,0.21853571]
[1730221901186,0.17418711,72727.0,72726.0,0.35608775]
[1730221901389,0.06876,72727.0,72726.0,0.21853571]
[1730221901690,1.56876,72727.0,72726.0,0.21853571]
[1730221907594,1.56876,72727.0,72723.0,0.068764]
[1730221907595,0.068763,72724.0,72723.0,0.068764]
[1730221907990,1.5,72727.0,72720.0,0.01788504]
[1730221907991,0.068765,72722.0,72720.0,0.01788504]
[1730221908296,0.068765,72722.0,72720.0,0.068767]
[1730221908491,0.068765,72722.0,72721.0,0.068766]
[1730221909193,1.60542711,72727.0,72718.0,0.01737551]
[1730221909393,0.068768,72719.0,72717.0,0.068769]
[1730221909697,0.068764,72723.0,72714.0,0.429572]
[1730221909899,1.60542711,72727.0,72718.0,0.068768]
[1730221910102,0.068767,72720.0,72718.0,0.068768]
[1730221910399,1.60542711,72727.0,72715.0,0.068771]
[1730221910400,0.001,72716.0,72715.0,0.068771]
[1730221911387,0.001,72716.0,72715.0,0.429571]
[1730221911788,0.001,72716.0,72715.0,0.068771]
[1730221911988,0.06977,72716.0,72715.0,0.068771]
[1730221912293,0.068772,72715.0,72713.0,0.1350213]
[1730221912489,0.001,72716.0,72713.0,0.2037943]
[1730221912804,0.068772,72714.0,72713.0,0.2037943]
[1730221913191,0.001,72716.0,72715.0,0.068771]
[1730221913703,0.068772,72715.0,72713.0,0.0177813]
[1730221913900,0.068772,72715.0,72713.0,0.068773]
[1730221914397,0.001,72716.0,72713.0,0.068773]
[1730221914600,0.001,72716.0,72710.0,0.35543002]
[1730221914601,0.068771,72715.0,72714.0,0.35752046]
[1730221914806,0.068771,72715.0,72714.0,0.42629246]
[1730221915994,0.3608,72717.0,72716.0,0.06877]
[1730221916299,0.3608,72717.0,72716.0,0.81258436]
[1730221916503,0.3608,72723.0,72716.0,0.74411648]
[1730221916692,0.429564,72723.0,72722.0,0.21531298]
[1730221916892,0.429564,72723.0,72722.0,0.57283344]
[1730221917090,0.429564,72723.0,72722.0,0.32458157]
[1730221917704,0.429564,72723.0,72722.0,0.21915446]
[1730221918111,0.430564,72723.0,72722.0,0.21915446]
[1730221919698,0.429564,72723.0,72722.0,0.21915446]
[1730221919903,0.430564,72723.0,72722.0,0.21915446]
[1730221920104,0.430564,72723.0,72722.0,0.32458157]
[1730221920303,0.3618,72723.0,72722.0,0.39334657]
[1730221920506,0.001,72723.0,72722.0,0.6891338]
[1730221921999,0.001,72723.0,72722.0,0.53200154]
[1730221922304,0.001,72723.0,72722.0,0.68934669]
[1730221922503,0.07687993,72723.0,72722.0,0.19193377]
[1730221923405,0.14564393,72723.0,72722.0,0.12316877]
[1730221924203,0.14564393,72723.0,72722.0,0.13482166]
[1730221924405,0.10343705,72723.0,72722.0,0.24024877]
[1730221925306,0.10343705,72723.0,72722.0,0.12316877]
[1730221925504,0.10343705,72723.0,72722.0,0.19193377]
[1730221926799,0.10343705,72723.0,72722.0,0.12316877]
[1730221927105,0.14564595,72723.0,72722.0,0.12316877]
[1730221927697,0.10343705,72723.0,72722.0,0.01774166]
[1730221927897,0.03467305,72723.0,72718.0,0.22250711]
[1730221928200,0.10243805,72722.0,72718.0,0.22250711]
[1730221928402,0.03367305,72721.0,72720.0,0.068767]
[1730221928604,0.03367305,72721.0,72720.0,0.10542711]
[1730221928800,0.001,72723.0,72720.0,0.10542711]
[1730221928801,0.03367467,72722.0,72721.0,0.068766]
[1730221928999,0.03367466,72722.0,72721.0,0.068766]
[1730221929597,0.001,72723.0,72721.0,0.09969776]
[1730221929802,0.001,72723.0,72720.0,0.06870266]
[1730221930108,0.068767,72720.0,72719.0,0.06870266]
[1730221930405,0.068768,72719.0,72718.0,0.08607609]
[1730221930911,0.068768,72719.0,72718.0,0.01737343]
[1730221931101,0.10542711,72721.0,72717.0,0.06870266]
[1730221931307,0.068769,72718.0,72717.0,0.06870266]
[1730221931609,0.068769,72718.0,72717.0,0.16875796]
[1730221931807,0.17419611,72718.0,72717.0,0.16875796]
[1730221932108,0.17419611,72718.0,72716.0,0.06870266]
[1730221932109,0.06877,72717.0,72716.0,0.06870266]
[1730221932299,0.06877,72717.0,72716.0,0.168819]
[1730221932500,0.06877,72717.0,72716.0,0.06870266]
[1730221932706,0.06877,72716.0,72715.0,0.06870266]
[1730221932907,0.06877,72716.0,72715.0,0.27417766]
[1730221933910,0.06877,72716.0,72715.0,0.17411984]
[1730221934521,0.06877,72716.0,72715.0,0.27417351]
[1730221934699,0.06877,72716.0,72715.0,0.10542711]
[1730221935202,0.06877,72716.0,72715.0,0.20542556]
[1730221935704,0.06877,72716.0,72715.0,0.27410954]
[1730221936107,0.06977,72716.0,72715.0,0.17411109]
[1730221936505,0.06977,72716.0,72715.0,0.10542711]
[1730221937104,0.06977,72716.0,72715.0,0.17411109]
[1730221937308,0.06977,72716.0,72715.0,0.10542711]
[1730221938014,0.001,72716.0,72715.0,0.17419811]
[1730221938210,0.001,72716.0,72715.0,0.24288209]
[1730221938513,0.001,72716.0,72715.0,0.4621508]
[1730221938718,0.001,72716.0,72715.0,0.79227255]
[1730221938909,0.001,72716.0,72715.0,0.91121135]
[1730221939110,0.068762,72725.0,72722.0,0.068764]
[1730221939310,0.068762,72725.0,72724.0,0.10542711]
[1730221939507,0.068762,72725.0,72724.0,0.20551444]
[1730221939909,0.068759,72729.0,72728.0,0.068759]
[1730221940211,0.5157,72740.0,72728.0,0.068759]
[1730221940212,0.00076,72740.0,72739.0,0.068749]
[1730221940413,0.0008,72740.0,72739.0,0.3901895]
[1730221940608,0.3608,72746.0,72743.0,0.068745]
[1730221940819,0.429542,72746.0,72745.0,0.10542711]
[1730221941520,0.429542,72746.0,72745.0,0.16024019]
[1730221941818,0.068742,72746.0,72745.0,0.10542711]
[1730221942212,0.17416311,72753.0,72742.0,0.10542711]
[1730221942411,0.10542711,72753.0,72746.0,0.05480699]
[1730221942615,0.068742,72746.0,72745.0,0.05480699]
[1730221942820,0.10542711,72753.0,72742.0,0.10542711]
[1730221943012,0.0708038,72747.0,72746.0,0.05478369]
[1730221943212,0.068742,72746.0,72745.0,0.05478369]
[1730221943525,0.3628628,72747.0,72744.0,0.05478278]
[1730221943821,0.17417011,72745.0,72744.0,0.05478278]
[1730221944118,0.068745,72743.0,72742.0,0.05478278]
[1730221944321,0.068745,72743.0,72741.0,0.16020989]
[1730221944613,0.07586337,72742.0,72733.0,0.11708]
[1730221944815,0.07586337,72741.0,72740.0,0.068748]
[1730221945207,0.12517101,72741.0,72740.0,0.068748]
[1730221945410,0.07586337,72741.0,72740.0,0.841988]
[1730221945713,0.3608,72747.0,72744.0,0.068744]
[1730221945714,0.04930764,72745.0,72744.0,0.068744]
[1730221945911,0.04930764,72746.0,72745.0,0.17417011]
[1730221946219,0.068743,72745.0,72744.0,0.11692]
[1730221946425,0.068743,72745.0,72744.0,0.22234711]
[1730221946716,0.04930764,72745.0,72744.0,0.29109011]
[1730221946919,0.10572356,72753.0,72744.0,0.29109011]
[1730221947218,0.04930764,72752.0,72749.0,0.10542711]
[1730221947411,0.10572356,72753.0,72749.0,0.10542711]
[1730221947607,0.068738,72750.0,72749.0,0.10542711]
[1730221948412,0.11804564,72750.0,72749.0,0.04340088]
[1730221949718,0.068738,72750.0,72749.0,0.04340088]
[1730221950623,0.11093224,72750.0,72749.0,0.04340088]
[1730221951321,0.068739,72749.0,72747.0,0.11692]
[1730221951521,0.11093424,72748.0,72747.0,0.11692]
[1730221952613,0.001,72750.0,72747.0,0.10403704]
[1730221952814,0.069739,72750.0,72749.0,0.10542711]
[1730221953020,0.069739,72750.0,72748.0,0.00232987]
[1730221953021,0.001,72750.0,72748.0,0.00232987]
[1730221953221,0.068739,72749.0,72748.0,0.00232987]
[1730221953522,0.069739,72749.0,72748.0,0.00232987]
[1730221954824,0.068739,72749.0,72748.0,0.00232987]
[1730221955533,0.001,72750.0,72748.0,0.00232987]
[1730221955825,0.069739,72750.0,72749.0,0.10775698]
[1730221956622,0.068739,72750.0,72749.0,0.10775698]
[1730221957824,0.069739,72750.0,72749.0,0.10775698]
[1730221958534,0.069739,72750.0,72749.0,0.00232987]
[1730221959918,0.14559256,72750.0,72749.0,0.00232987]
[1730221960118,0.10340035,72750.0,72749.0,0.00232987]
[1730221960418,0.03466135,72750.0,72749.0,0.17649598]
[1730221960617,0.001,72750.0,72749.0,0.29337598]
[1730221960822,0.07685314,72750.0,72749.0,0.29337598]
[1730221961416,0.14559114,72750.0,72749.0,0.22463698]
[1730221961624,0.10339935,72750.0,72749.0,0.22463698]
[1730221961821,0.14558928,72750.0,72749.0,0.00232987]
[1730221962131,0.61181639,72750.0,72749.0,0.00232987]
[1730221962820,0.55569479,72750.0,72749.0,0.00232987]
[1730221963022,0.50638928,72750.0,72749.0,0.00232987]
[1730221963333,0.50639799,72750.0,72749.0,0.00232987]
[1730221963732,0.5557024,72750.0,72749.0,0.00232987]
[1730221964923,0.5557024,72750.0,72745.0,0.11688]
[1730221965125,0.068742,72746.0,72745.0,0.11688]
[1730221965331,0.14460199,72746.0,72745.0,0.11688]
[1730221965628,0.14460199,72746.0,72744.0,0.22230711]
[1730221965629,0.068743,72745.0,72744.0,0.22230711]
[1730221965830,0.14460299,72745.0,72744.0,0.22230711]
[1730221966432,0.14460299,72745.0,72744.0,0.23997542]
[1730221966625,0.14460299,72745.0,72744.0,0.12309542]
[1730221966929,0.068761,72726.0,72725.0,0.3608]
[1730221967124,0.11095686,72726.0,72725.0,0.3608]
[1730221967628,0.0836636,72726.0,72725.0,0.48562835]
[1730221967824,0.03436016,72726.0,72725.0,0.59035348]
[1730221968327,0.03436016,72726.0,72725.0,0.69778059]
[1730221968527,0.10542711,72732.0,72725.0,0.69778059]
[1730221968733,0.068756,72731.0,72730.0,0.08228851]
[1730221968926,0.068756,72731.0,72730.0,0.18701364]
[1730221969130,0.3608,72733.0,72730.0,0.18701364]
[1730221969436,0.068755,72732.0,72731.0,0.18701364]
[1730221969627,0.068755,72732.0,72731.0,0.10472513]
[1730221969935,0.3608,72733.0,72731.0,0.18701364]
[1730221970229,0.429555,72733.0,72732.0,0.10472513]
[1730221970429,0.3608,72733.0,72732.0,0.10472513]
[1730221970733,0.3608,72733.0,72732.0,0.298114]
[1730221971031,0.1613,72747.0,72736.0,0.068751]
[1730221971231,0.06875,72738.0,72737.0,0.229359]
[1730221971743,0.06875,72738.0,72737.0,0.10472513]
[1730221972438,0.06875,72738.0,72737.0,0.21015224]
[1730221972733,0.06975,72738.0,72737.0,0.21015224]
[1730221973126,0.06975,72738.0,72737.0,0.10472513]
[1730221974630,0.06975,72738.0,72737.0,0.22933551]
[1730221974835,0.06975,72738.0,72737.0,0.33476262]
[1730221975933,0.06975,72738.0,72737.0,0.35239542]
[1730221979039,0.06975,72738.0,72737.0,0.22933551]
[1730221979636,0.001,72738.0,72737.0,0.23096129]
[1730221979934,0.06975,72738.0,72737.0,0.23085979]
[1730221980339,0.06975,72738.0,72737.0,0.23100399]
[1730221981643,0.48219,72738.0,72737.0,0.23100399]
[1730221982141,0.06975,72738.0,72737.0,0.23100399]
[1730221982737,0.068751,72737.0,72729.0,0.10542711]
[1730221983036,0.068757,72730.0,72729.0,0.068757]
[1730221983240,0.068757,72730.0,72729.0,0.17418411]
[1730221984732,0.068757,72730.0,72729.0,0.10542711]
[1730221985141,0.068761,72726.0,72725.0,0.10542711]
[1730221987334,0.068761,72726.0,72725.0,0.10742711]
[1730221988142,0.068761,72726.0,72725.0,0.10942711]
[1730221988544,0.068761,72726.0,72725.0,0.12648848]
[1730221989637,0.068761,72726.0,72725.0,0.35769956]
[1730221990636,0.068758,72730.0,72725.0,0.35769956]
[1730221990837,0.3608,72734.0,72732.0,0.10542711]
[1730221990838,0.068754,72733.0,72732.0,0.10542711]
[1730221991031,0.068754,72733.0,72732.0,0.21021089]
[1730221991635,0.068754,72733.0,72732.0,0.2925162]
[1730221992746,0.068754,72733.0,72732.0,0.21021085]
[1730221993247,0.068754,72733.0,72732.0,0.29255617]
[1730221993434,0.068754,72733.0,72732.0,0.21021085]
[1730221993833,0.069754,72733.0,72732.0,0.21021085]
[1730221995436,0.069754,72733.0,72732.0,0.29255772]
[1730221996551,0.069754,72733.0,72732.0,0.21021085]
[1730221997853,0.068758,72729.0,72728.0,0.17418611]
[1730221998152,0.10242936,72729.0,72728.0,0.10542711]
[1730221998949,0.068761,72726.0,72725.0,0.10542711]
[1730221999152,0.03367136,72726.0,72724.0,0.01920855]
[1730221999341,0.068762,72725.0,72724.0,0.00206218]
[1730221999541,0.14464042,72725.0,72724.0,0.00206218]
[1730222000447,0.14464042,72725.0,72724.0,0.07282518]
[1730222000947,0.076877,72725.0,72724.0,0.07282518]
[1730222001142,0.3608,72734.0,72733.0,0.068754]
[1730222001446,0.04220296,72734.0,72733.0,0.17418111]
[1730222001650,0.429546,72742.0,72741.0,0.068747]
[1730222001847,0.47174633,72742.0,72741.0,0.17417411]
[1730222002040,0.04220033,72742.0,72741.0,0.17417411]
[1730222002343,0.3608,72748.0,72747.0,0.068741]
[1730222002648,0.068734,72755.0,72750.0,0.068738]
[1730222002848,0.068734,72755.0,72754.0,0.10542711]
[1730222003851,0.068734,72755.0,72751.0,0.1614]
[1730222003852,0.068736,72752.0,72751.0,0.26682711]
[1730222004153,0.068736,72752.0,72748.0,0.11676]
[1730222004154,0.068739,72749.0,72748.0,0.11676]
[1730222004849,0.36286227,72756.0,72748.0,0.11676]
[1730222005150,0.36286227,72756.0,72754.0,0.10542711]
[1730222005151,0.068734,72755.0,72754.0,0.10542711]
[1730222006748,0.3608,72764.0,72763.0,0.068726]
[1730222006947,0.3608,72764.0,72763.0,0.17415311]
[1730222007850,0.3608,72764.0,72763.0,0.10542711]
[1730222008045,0.429525,72764.0,72761.0,0.1628]
[1730222008252,0.068727,72762.0,72761.0,0.1628]
[1730222008448,0.068727,72762.0,72760.0,0.11664]
[1730222008449,0.10542711,72762.0,72760.0,0.11664]
[1730222008646,0.06873,72759.0,72758.0,0.3608]
[1730222008847,0.17415711,72759.0,72758.0,0.3608]
[1730222009349,0.06873,72759.0,72758.0,0.3608]
[1730222009549,0.17415711,72759.0,72758.0,0.3608]
[1730222010952,0.068734,72755.0,72754.0,0.01759354]
[1730222011147,0.068734,72755.0,72751.0,0.1603]
[1730222011350,0.068736,72752.0,72751.0,0.1603]
[1730222012249,0.068736,72752.0,72751.0,0.17744363]
[1730222012750,0.17416311,72752.0,72751.0,0.17744363]
[1730222013054,0.068737,72751.0,72750.0,0.3608]
[1730222016953,0.14459644,72751.0,72750.0,0.3608]
[1730222017156,0.19390153,72751.0,72750.0,0.3608]
[1730222018755,0.19390109,72751.0,72750.0,0.3608]
[1730222019743,0.068737,72751.0,72750.0,0.3608]
[1730222022659,0.481097,72751.0,72750.0,0.3608]
[1730222022958,0.068739,72749.0,72742.0,0.3608]
[1730222023258,0.17417211,72743.0,72742.0,0.3608]
[1730222024652,0.068751,72737.0,72736.0,0.04109894]
[1730222024848,0.068751,72737.0,72735.0,0.01728084]
[1730222024849,0.068751,72737.0,72735.0,0.04109894]
[1730222025056,0.068751,72737.0,72733.0,0.40189894]
[1730222025254,0.17418011,72734.0,72733.0,0.3608]
[1730222026852,0.17418011,72734.0,72729.0,0.05821891]
[1730222027062,0.068757,72730.0,72729.0,0.01711997]
[1730222027266,0.068758,72729.0,72728.0,0.3208]
[1730222028661,0.070758,72729.0,72728.0,0.3348]
[1730222029161,0.070758,72729.0,72728.0,0.39351887]
[1730222029359,0.070758,72729.0,72728.0,0.35241993]
[1730222030265,0.070758,72729.0,72728.0,0.39355858]
[1730222030462,0.070758,72729.0,72728.0,0.35241993]
[1730222030851,0.070758,72729.0,72728.0,0.23016811]
[1730222031259,0.070758,72729.0,72728.0,0.07276811]
[1730222031461,0.070758,72729.0,72728.0,0.03161993]
[1730222031759,0.070758,72729.0,72728.0,0.07276811]
[1730222031958,0.070758,72729.0,72728.0,0.03161993]
[1730222032663,0.070758,72729.0,72728.0,0.07276811]
[1730222034766,0.070758,72729.0,72728.0,0.03161993]
[1730222037162,0.068759,72728.0,72727.0,0.36208]
[1730222037367,0.068759,72728.0,72727.0,0.46622711]
[1730222038458,0.068759,72728.0,72727.0,0.47422711]
[1730222038658,0.10443032,72728.0,72727.0,0.48222711]
[1730222038965,0.002,72728.0,72727.0,0.55098711]
[1730222040866,0.002,72728.0,72727.0,0.56860181]
[1730222042574,0.068759,72728.0,72727.0,0.67337948]
[1730222042974,0.068759,72728.0,72727.0,0.60461948]
[1730222043163,0.068759,72728.0,72727.0,0.67337948]
[1730222043364,0.068759,72728.0,72727.0,0.60461948]
[1730222043767,0.068759,72728.0,72727.0,0.67337948]
[1730222043971,0.068759,72728.0,72727.0,0.67337968]
[1730222044373,0.068759,72728.0,72727.0,0.60461968]
[1730222045480,0.068759,72728.0,72727.0,0.49919257]
[1730222047267,0.068459,72728.0,72727.0,0.49919257]
[1730222048578,0.068459,72728.0,72727.0,0.49919437]
[1730222050477,0.068459,72728.0,72727.0,0.3944147]
[1730222050478,0.10212927,72728.0,72727.0,0.3944147]
[1730222051582,0.20755638,72728.0,72727.0,0.3944147]
[1730222051883,0.10212927,72728.0,72727.0,0.3944147]
[1730222052371,0.10212927,72728.0,72727.0,0.49984181]
[1730222052777,0.10212927,72728.0,72727.0,0.49284181]
[1730222053072,0.03367049,72728.0,72727.0,0.56159481]
[1730222053774,0.07587384,72728.0,72727.0,0.55359481]
[1730222054078,0.07587384,72728.0,72727.0,0.55459481]
[1730222054774,0.069499,72750.0,72727.0,0.55459481]
[1730222054977,0.3608,72759.0,72746.0,0.53496211]
[1730222054978,0.07587092,72747.0,72746.0,0.53496211]
[1730222055167,0.11093587,72747.0,72746.0,0.58270711]
[1730222055575,0.11093587,72747.0,72746.0,0.3608]
[1730222056275,0.068734,72747.0,72746.0,0.3608]
[1730222057475,0.068734,72747.0,72746.0,0.46555223]
[1730222057669,0.069734,72747.0,72746.0,0.46555223]
[1730222058775,0.070734,72747.0,72746.0,0.46555223]
[1730222059185,0.070734,72747.0,72746.0,0.54780237]
[1730222059385,0.070734,72747.0,72746.0,0.46555223]
[1730222059386,0.069734,72747.0,72746.0,0.46555223]
[1730222059578,0.070734,72747.0,72746.0,0.46555223]
[1730222060477,0.069734,72747.0,72746.0,0.46555223]
[1730222060680,0.17616111,72747.0,72746.0,0.58199223]
[1730222060880,0.17616111,72747.0,72746.0,0.46555223]
[1730222061584,0.17516111,72747.0,72746.0,0.46555223]
[1730222061788,0.17616111,72747.0,72746.0,0.46555223]
[1730222062291,0.070734,72747.0,72746.0,0.4655576]
[1730222062580,0.069734,72747.0,72746.0,0.4655576]
[1730222062885,0.070734,72747.0,72746.0,0.4655576]
[1730222065384,0.10439712,72747.0,72746.0,0.3608]
[1730222065586,0.14659156,72747.0,72746.0,0.3608]
[1730222065982,0.25201867,72747.0,72746.0,0.3608]
[1730222066179,0.19589543,72747.0,72746.0,0.3608]
[1730222066381,0.19589543,72747.0,72746.0,0.53496211]
[1730222066589,0.14659156,72747.0,72746.0,0.53496211]
[1730222066989,0.07785756,72747.0,72746.0,0.53496211]
[1730222067183,0.07785756,72747.0,72746.0,0.65116211]
[1730222070877,0.05136249,72758.0,72757.0,0.068725]
[1730222070878,0.00206268,72758.0,72757.0,0.068725]
[1730222071077,0.09148996,72766.0,72765.0,0.068717]
[1730222071283,0.068716,72766.0,72765.0,0.477]
[1730222071989,0.068715,72768.0,72766.0,0.068716]
[1730222072189,0.068715,72768.0,72767.0,0.10542711]
[1730222072390,0.3608,72782.0,72767.0,0.10542711]
[1730222072587,0.3608,72782.0,72779.0,0.10542711]
[1730222072588,0.068703,72780.0,72779.0,0.10542711]
[1730222073791,0.3608,72782.0,72777.0,0.1162]
[1730222073988,0.3608,72782.0,72776.0,0.10542711]
[1730222074194,0.068706,72777.0,72776.0,0.10542711]
[1730222074494,0.068706,72777.0,72776.0,0.22162711]
[1730222075186,0.068706,72777.0,72776.0,0.10542711]
[1730222075394,0.068706,72777.0,72776.0,0.22162711]
[1730222075593,0.068706,72777.0,72776.0,0.10542711]
[1730222075791,0.068707,72776.0,72775.0,0.1162]
[1730222076486,0.068707,72776.0,72775.0,0.13365586]
[1730222077184,0.069707,72776.0,72775.0,0.13365586]
[1730222078987,0.070707,72776.0,72775.0,0.01745586]
[1730222079194,0.002,72776.0,72773.0,0.47696]
[1730222079401,0.068709,72774.0,72773.0,0.47696]
[1730222080690,0.068709,72774.0,72773.0,0.49473747]
[1730222080897,0.069709,72774.0,72773.0,0.49473747]
[1730222081897,0.069709,72774.0,72773.0,0.37857747]
[1730222081898,0.001,72774.0,72773.0,0.37857747]
[1730222082087,0.001,72774.0,72773.0,0.56344747]
[1730222082390,0.1614,72796.0,72774.0,0.41224]
[1730222082590,0.1614,72796.0,72795.0,0.46622711]
[1730222082591,0.068688,72796.0,72795.0,0.46622711]
[1730222083396,0.3215,72808.0,72795.0,0.57165422]
[1730222083606,0.3215,72808.0,72807.0,0.46622711]
[1730222083607,0.068677,72808.0,72807.0,0.46622711]
[1730222084507,0.068677,72808.0,72807.0,0.3608]
[1730222084895,0.068677,72808.0,72807.0,0.46622711]
[1730222085899,0.068677,72808.0,72807.0,0.3608]
[1730222086488,0.480717,72808.0,72807.0,0.3608]
[1730222086799,0.481717,72808.0,72807.0,0.3608]
[1730222086997,0.068688,72796.0,72795.0,0.3608]
[1730222087596,0.14449028,72796.0,72795.0,0.20958634]
[1730222088799,0.14649028,72796.0,72795.0,0.20958634]
[1730222089704,0.14649551,72796.0,72795.0,0.20958634]
[1730222094504,0.070688,72796.0,72795.0,0.20958634]
[1730222094705,0.10436269,72800.0,72795.0,0.20958634]
[1730222094904,0.068685,72799.0,72798.0,0.05451004]
[1730222095406,0.10436269,72800.0,72795.0,0.20958634]
[1730222095407,0.068688,72796.0,72795.0,0.20958634]
[1730222097316,0.068688,72796.0,72795.0,0.38261714]
[1730222098015,0.068688,72796.0,72795.0,0.31427181]
[1730222098206,0.069688,72796.0,72795.0,0.31427181]
[1730222098406,0.001,72796.0,72795.0,0.38296081]
[1730222098607,0.002,72796.0,72795.0,0.38296081]
[1730222099216,0.070688,72796.0,72795.0,0.38296081]
[1730222099418,0.070688,72796.0,72795.0,0.46497521]
[1730222099916,0.070688,72796.0,72795.0,0.39628621]
[1730222100116,0.070688,72796.0,72795.0,0.46497521]
[1730222100312,0.070688,72796.0,72795.0,0.38296081]
[1730222101403,0.070688,72796.0,72795.0,0.44091319]
[1730222102010,0.070688,72796.0,72795.0,0.44090693]
[1730222102313,0.070688,72796.0,72795.0,0.31427181]
[1730222102517,0.070688,72796.0,72795.0,0.20958634]
[1730222103010,0.070688,72796.0,72779.0,0.00128]
[1730222103011,0.55318508,72796.0,72779.0,0.00128]
[1730222103217,0.068702,72781.0,72777.0,0.1592]
[1730222103416,0.3608,72791.0,72780.0,0.12907106]
[1730222103614,0.068702,72781.0,72780.0,0.10748792]
[1730222104019,0.068702,72781.0,72780.0,0.00206081]
[1730222104218,0.10234682,72781.0,72780.0,0.00206081]
[1730222104406,0.10234678,72781.0,72780.0,0.00206081]
[1730222105718,0.10234678,72781.0,72780.0,0.00506081]
[1730222106609,0.10234678,72781.0,72780.0,0.00806081]
[1730222107010,0.03364478,72781.0,72780.0,0.07676381]
[1730222107205,0.068698,72786.0,72784.0,0.068699]
[1730222107415,0.00206116,72796.0,72785.0,0.58206711]
[1730222107616,0.3608,72813.0,72795.0,0.64034322]
[1730222107822,0.068677,72808.0,72807.0,0.429478]
[1730222108011,0.1539,72820.0,72807.0,0.429478]
[1730222108012,0.068674,72811.0,72808.0,0.068677]
[1730222108210,0.03363192,72810.0,72809.0,0.068676]
[1730222108631,0.03363192,72810.0,72807.0,0.3608]
[1730222108632,0.068661,72825.0,72807.0,0.3608]
[1730222108811,0.107488,72826.0,72823.0,0.3608]
[1730222108812,0.068662,72824.0,72823.0,0.3608]
[1730222109116,0.10228888,72824.0,72823.0,0.3608]
[1730222109715,0.068662,72824.0,72823.0,0.2317892]
[1730222109910,0.068662,72824.0,72823.0,1e-08]
[1730222109911,0.780622,72824.0,72823.0,1e-08]
[1730222110112,0.06867,72815.0,72814.0,0.3608]
[1730222110424,0.068676,72809.0,72808.0,0.09568347]
[1730222110725,0.068678,72807.0,72806.0,0.02349162]
[1730222110909,0.068678,72807.0,72806.0,0.14590674]
[1730222111616,0.068678,72807.0,72806.0,0.57538574]
[1730222112018,0.068668,72818.0,72810.0,0.068675]
[1730222112019,0.068674,72811.0,72810.0,0.068675]
[1730222112217,0.068674,72811.0,72810.0,0.2697004]
[1730222112419,0.068674,72811.0,72810.0,0.31768042]
[1730222113121,0.001,72815.0,72810.0,0.31768042]
[1730222113316,0.068674,72811.0,72810.0,0.10542711]
[1730222113614,0.068674,72811.0,72810.0,0.17410211]
[1730222113615,0.070674,72811.0,72810.0,0.17410211]
[1730222113822,0.070674,72811.0,72810.0,0.31695337]
[1730222114525,0.069674,72811.0,72810.0,0.31695337]
[1730222114722,0.001,72811.0,72810.0,0.31695337]
[1730222115624,0.001,72815.0,72810.0,0.24757394]
[1730222115820,0.07067,72815.0,72814.0,0.17409811]
[1730222116021,0.07067,72815.0,72814.0,0.31624494]
[1730222116218,0.06967,72815.0,72814.0,0.31624494]
[1730222116524,0.001,72815.0,72814.0,0.31624494]
[1730222116823,0.068667,72818.0,72817.0,0.068668]
[1730222117018,0.068667,72818.0,72817.0,0.10542711]
[1730222118520,0.068667,72818.0,72817.0,0.14632515]
[1730222118724,0.068667,72818.0,72817.0,0.10542711]
[1730222119020,0.068667,72818.0,72817.0,0.04089723]
[1730222119219,0.06867,72815.0,72814.0,0.04089723]
[1730222119424,0.068671,72814.0,72813.0,0.3608]
[1730222120033,0.223771,72814.0,72813.0,0.3608]
[1730222120617,0.224771,72814.0,72813.0,0.3608]
[1730222120823,0.225771,72814.0,72813.0,0.3608]
[1730222122222,0.068676,72809.0,72806.0,0.04295747]
[1730222122418,0.068676,72809.0,72800.0,0.3608]
[1730222122419,0.068683,72801.0,72800.0,0.40169723]
[1730222122619,0.10542711,72810.0,72800.0,0.3608]
[1730222122826,2.086571,72814.0,72806.0,0.46622711]
[1730222123028,1.8636,72814.0,72806.0,0.46622711]
[1730222123332,0.070671,72814.0,72808.0,0.10542711]
[1730222123529,0.068676,72809.0,72808.0,0.10542711]
[1730222123829,0.068676,72809.0,72808.0,0.17410411]